fUST/lending_fUST_20250120
["ID","MTS","AMOUNT","RATE_DAILY","PERIOD"]
[349583984,1737311440149,-500.0,0.00022049,2]
[349583985,1737311440159,-500.0,0.00022049,2]
[349583987,1737311440169,-500.0,0.00022049,2]
[349583989,1737311440178,-500.0,0.00022049,2]
[349583990,1737311440188,-500.0,0.00022049,2]
[349583992,1737311440197,-500.0,0.00022049,2]
[349583994,1737311440207,-500.0,0.00022049,2]
[349583996,1737311440217,-500.0,0.00022049,2]
[349583998,1737311440226,-393.06725973,0.00022049,2]
[349584000,1737311440237,-500.0,0.00022049,2]
[349584002,1737311440248,-500.0,0.00022049,2]
[349584004,1737311440258,-500.0,0.00022049,2]
[349584006,1737311440268,-307.74821219,0.00022049,2]
[349584008,1737311440279,-500.0,0.00022049,2]
[349584009,1737311440289,-336.44279685,0.00022049,2]
[349584010,1737311440299,-500.0,0.00022049,2]
[349584011,1737311440309,-500.0,0.00022049,2]
[349584012,1737311440319,-500.0,0.00022049,2]
[349584013,1737311440329,-500.0,0.00022049,2]
[349584014,1737311440339,-500.0,0.00022049,2]
[349584015,1737311440348,-500.0,0.00022049,2]
[349584016,1737311440358,-500.0,0.00022049,2]
[349584017,1737311440367,-500.0,0.00022049,2]
[349584018,1737311440377,-500.0,0.00022049,2]
[349584019,1737311440386,-500.0,0.00022049,2]
[349584020,1737311440396,-509.67064202,0.00022049,2]
[349584021,1737311440405,-500.0,0.00022049,2]
[349584022,1737311440415,-500.0,0.00022049,2]
[349584023,1737311440425,-500.0,0.00022049,2]
[349584024,1737311440434,-500.0,0.00022049,2]
[349584025,1737311440444,-500.0,0.00022049,2]
[349584026,1737311440454,-500.0,0.00022049,2]
[349584027,1737311440463,-500.0,0.00022049,2]
[349584028,1737311440474,-500.0,0.00022049,2]
[349584029,1737311440483,-500.0,0.00022049,2]
[349584030,1737311440494,-500.0,0.00022049,2]
[349584031,1737311440504,-500.0,0.00022049,2]
[349584032,1737311440514,-500.0,0.00022049,2]
[349584033,1737311440528,-500.0,0.00022049,2]
[349584034,1737311440537,-500.0,0.00022049,2]
[349584035,1737311440547,-500.0,0.00022049,2]
[349584036,1737311440558,-500.0,0.00022049,2]
[349584037,1737311440568,-500.0,0.00022049,2]
[349584038,1737311440578,-500.0,0.00022049,2]
[349584039,1737311440588,-500.0,0.00022049,2]
[349584040,1737311440597,-500.0,0.00022049,2]
[349584041,1737311440607,-520.37347673,0.00022049,2]
[349584042,1737311440616,-500.0,0.00022049,2]
[349584043,1737311440626,-500.0,0.00022049,2]
[349584044,1737311440635,-167.28750928,0.00022049,2]
[349584045,1737311440645,-500.0,0.00022049,2]
[349584046,1737311440654,-500.0,0.00022049,2]
[349584047,1737311440664,-500.0,0.00022049,2]
[349584048,1737311440674,-500.0,0.00022049,2]
[349584049,1737311440683,-500.0,0.00022049,2]
[349584050,1737311440694,-500.0,0.00022049,2]
[349584051,1737311440703,-500.0,0.00022049,2]
[349584052,1737311440713,-500.0,0.00022049,2]
[349584053,1737311440722,-500.0,0.00022049,2]
[349584054,1737311440731,-500.0,0.00022049,2]
[349584055,1737311440742,-500.0,0.00022049,2]
[349584056,1737311440752,-500.0,0.00022049,2]
[349584057,1737311440761,-500.0,0.00022049,2]
[349584058,1737311440770,-500.0,0.00022049,2]
[349584059,1737311440780,-500.0,0.00022049,2]
[349584060,1737311440790,-500.0,0.00022049,2]
[349584061,1737311440800,-500.0,0.00022049,2]
[349584062,1737311440809,-500.0,0.00022049,2]
[349584063,1737311440819,-500.0,0.00022049,2]
[349584064,1737311440829,-500.0,0.00022049,2]
[349584065,1737311440838,-500.0,0.00022049,2]
[349584066,1737311440847,-500.0,0.00022049,2]
[349584067,1737311440857,-500.0,0.00022049,2]
[349584068,1737311440866,-500.0,0.00022049,2]
[349584069,1737311440876,-500.0,0.00022049,2]
[349584070,1737311440886,-500.0,0.00022049,2]
[349584071,1737311440895,-266.92322604,0.00022049,2]
[349584072,1737311440905,-355.31987222,0.00022049,2]
[349584073,1737311440914,-500.0,0.00022049,2]
[349584074,1737311440924,-500.0,0.00022049,2]
[349584075,1737311440935,-500.0,0.00022049,2]
[349584076,1737311440945,-500.0,0.00022049,2]
[349584077,1737311440954,-500.0,0.00022049,2]
[349584078,1737311440966,-500.0,0.00022049,2]
[349584079,1737311440978,-500.0,0.00022049,2]
[349584080,1737311440990,-500.0,0.00022049,2]
[349584081,1737311441003,-500.0,0.00022049,2]
[349584082,1737311441013,-500.0,0.00022049,2]
[349584083,1737311441022,-500.0,0.00022049,2]
[349584084,1737311441032,-500.0,0.00022049,2]
[349584085,1737311441041,-500.0,0.00022049,2]
[349584086,1737311441050,-500.0,0.00022049,2]
[349584087,1737311441060,-500.0,0.00022049,2]
[349584088,1737311441071,-1423.41,0.00022052,3]
[349584089,1737311441080,-1423.41,0.00022052,3]
[349584090,1737311441090,-1423.41,0.00022052,3]
[349584091,1737311441100,-1423.41,0.00022052,3]
[349584092,1737311441109,-1423.41,0.00022053,3]
[349584093,1737311441118,-1423.41,0.00022053,3]
[349584094,1737311441128,-1423.41,0.00022053,3]
[349584095,1737311441137,-500.0,0.00022054,3]
[349584096,1737311441147,-500.0,0.00022054,3]
[349584097,1737311441157,-500.0,0.00022054,3]
[349584098,1737311441167,-500.0,0.00022054,3]
[349584099,1737311441177,-504.21761115,0.00022054,3]
[349584100,1737311441187,-500.0,0.00022054,3]
[349584101,1737311441197,-500.0,0.00022054,3]
[349584102,1737311441207,-500.0,0.00022054,3]
[349584103,1737311441217,-500.0,0.00022054,3]
[349584104,1737311441226,-500.0,0.00022054,3]
[349584105,1737311441236,-500.0,0.00022054,3]
[349584107,1737311441248,-500.0,0.00022054,3]
[349584109,1737311441258,-500.0,0.00022054,3]
[349584110,1737311441268,-500.0,0.00022054,3]
[349584112,1737311441278,-500.0,0.00022054,3]
[349584114,1737311441288,-500.0,0.00022054,3]
[349584116,1737311441297,-500.0,0.00022054,3]
[349584118,1737311441307,-500.0,0.00022054,3]
[349584119,1737311441317,-500.0,0.00022054,3]
[349584120,1737311441327,-511.06,0.00022054,3]
[349584121,1737311441337,-250.13286148,0.00022054,3]
[349584123,1737311441346,-167.64253257,0.00022054,3]
[349584125,1737311441356,-500.0,0.00022054,3]
[349584127,1737311441365,-500.0,0.00022054,3]
[349584129,1737311441375,-500.0,0.00022054,3]
[349584131,1737311441385,-591.51,0.00022054,3]
[349584133,1737311441395,-500.0,0.00022054,3]
[349584135,1737311441404,-500.0,0.00022054,3]
[349584137,1737311441413,-500.0,0.00022054,3]
[349584139,1737311441423,-500.0,0.00022054,3]
[349584141,1737311441432,-500.0,0.00022054,3]
[349584143,1737311441441,-500.0,0.00022054,3]
[349584145,1737311441451,-500.0,0.00022054,3]
[349584147,1737311441461,-500.0,0.00022054,3]
[349584149,1737311441470,-500.0,0.00022054,3]
[349584151,1737311441479,-502.43111086,0.00022054,3]
[349584153,1737311441489,-500.0,0.00022054,3]
[349584163,1737311441584,-500.0,0.00022054,3]
[349584165,1737311441594,-500.0,0.00022054,3]
[349584167,1737311441606,-649.66,0.00022054,3]
[349584169,1737311441616,-500.0,0.00022054,3]
[349584171,1737311441626,-500.0,0.00022054,3]
[349584173,1737311441635,-500.0,0.00022054,3]
[349584175,1737311441645,-673.01,0.00022054,2]
[349584177,1737311441654,-500.0,0.00022054,3]
[349584179,1737311441665,-500.0,0.00022054,3]
[349584181,1737311441675,-563.49,0.00022054,3]
[349584183,1737311441684,-500.0,0.00022054,3]
[349584185,1737311441694,-500.0,0.00022054,3]
[349584187,1737311441704,-3057.96,0.00022054,3]
[349584189,1737311441714,-500.0,0.00022054,3]
[349584191,1737311441723,-4256.1,0.00022054,3]
[349584193,1737311441733,-500.0,0.00022054,3]
[349584195,1737311441742,-939.42,0.00022054,3]
[349584197,1737311441757,-500.0,0.00022054,3]
[349584199,1737311441766,-206.8,0.00022054,3]
[349584201,1737311441775,-1829.97,0.00022054,3]
[349584203,1737311441784,-6847.51,0.00022054,3]
[349584205,1737311441794,-500.0,0.00022054,3]
[349584207,1737311441803,-12009.11,0.00022054,3]
[349584208,1737311441812,-500.0,0.00022054,3]
[349584210,1737311441822,-500.0,0.00022054,3]
[349584212,1737311441831,-500.0,0.00022054,3]
[349584214,1737311441840,-550.71,0.00022054,3]
[349584216,1737311441850,-1590.82,0.00022054,3]
[349584218,1737311441859,-500.0,0.00022054,3]
[349584220,1737311441869,-550.57,0.00022054,3]
[349584222,1737311441878,-961.0,0.00022054,3]
[349584224,1737311441887,-500.0,0.00022054,3]
[349584226,1737311441896,-500.0,0.00022054,3]
[349584228,1737311441905,-500.0,0.00022054,3]
[349584230,1737311441914,-500.0,0.00022054,3]
[349584232,1737311441924,-500.0,0.00022054,3]
[349584233,1737311441933,-7213.16,0.00022054,3]
[349584235,1737311441942,-1974.84,0.00022054,3]
[349584237,1737311441951,-500.0,0.00022054,3]
[349584239,1737311441960,-1116.79,0.00022054,3]
[349584242,1737311441970,-920.63,0.00022054,3]
[349584243,1737311441979,-500.0,0.00022054,3]
[349584245,1737311441988,-500.0,0.00022054,3]
[349584247,1737311442000,-1741.99,0.00022054,3]
[349584248,1737311442010,-1791.09,0.00022054,3]
[349584250,1737311442019,-1924.78,0.00022054,3]
[349584252,1737311442028,-301.75886752,0.00022054,3]
[349584254,1737311442037,-500.0,0.00022054,3]
[349584256,1737311442047,-500.0,0.00022054,3]
[349584258,1737311442056,-1093.13,0.00022054,3]
[349584260,1737311442065,-983.37,0.00022054,3]
[349584261,1737311442074,-500.0,0.00022054,3]
[349584263,1737311442083,-980.47,0.00022054,3]
[349584265,1737311442093,-21457.73,0.00022054,3]
[349584267,1737311442102,-1948.05,0.00022054,3]
[349584269,1737311442111,-738.7,0.00022054,3]
[349584271,1737311442121,-515.46922841,0.00022054,3]
[349584273,1737311442130,-500.0,0.00022054,3]
[349584275,1737311442140,-603.78,0.00022054,3]
[349584277,1737311442149,-500.0,0.00022054,3]
[349584279,1737311442159,-500.0,0.00022054,3]
[349584281,1737311442168,-1128.87,0.00022054,3]
[349584283,1737311442177,-594.38,0.00022054,3]
[349584285,1737311442186,-526.20262269,0.00022054,3]
[349584287,1737311442195,-513.07,0.00022054,3]
[349584289,1737311442205,-760.88,0.00022054,3]
[349584291,1737311442214,-500.0,0.00022054,3]
[349584293,1737311442224,-500.0,0.00022073,2]
[349584295,1737311442234,-504.73076203,0.00022073,2]
[349584297,1737311442245,-500.0,0.00022073,2]
[349584298,1737311442254,-501.19233727,0.00022073,2]
[349584299,1737311442263,-500.0,0.00022073,2]
[349584300,1737311442272,-411.73469692,0.00022073,2]
[349584301,1737311442281,-500.0,0.00022073,2]
[349584302,1737311442291,-163.91616108,0.00022073,2]
[349584303,1737311442301,-503.11031196,0.00022073,2]
[349584304,1737311442309,-500.0,0.00022073,2]
[349584305,1737311442318,-500.0,0.00022073,2]
[349584306,1737311442327,-156.89252278,0.00022073,2]
[349584307,1737311442336,-501.30952676,0.00022073,2]
[349584308,1737311442345,-10866.92937349,0.0002209,3]
[349584309,1737311442360,-4318.29698207,0.0002209,3]
[349584310,1737311442383,-18645.74190706,0.0002209,3]
[349584311,1737311442395,-577.09453003,0.00022091,2]
[349584312,1737311442405,-1841.21302959,0.00022121,2]
[349584314,1737311442415,-460.90240149,0.00022142,2]
[349584316,1737311442425,-503.31688556,0.00022173,2]
[349584318,1737311442436,-500.0,0.00022173,2]
[349584320,1737311442447,-161.449805,0.00022173,2]
[349584322,1737311442456,-500.0,0.0002219,2]
[349584324,1737311442465,-266.16822066,0.0002219,2]
[349584326,1737311442476,-500.0,0.0002219,2]
[349584328,1737311442485,-583.70300994,0.0002219,2]
[349584329,1737311442494,-500.0,0.0002219,2]
[349584331,1737311442504,-1423.41,0.0002219,3]
[349584333,1737311442513,-1423.41,0.0002219,3]
[349584335,1737311442523,-1423.41,0.0002219,3]
[349584337,1737311442533,-500.0,0.00022191,3]
[349584339,1737311442542,-500.0,0.00022191,3]
[349584340,1737311442552,-610.96849,0.00022191,3]
[349584342,1737311442561,-500.0,0.00022191,3]
[349584344,1737311442572,-500.0,0.00022191,3]
[349584346,1737311442581,-365.82308792,0.00022191,3]
[349584348,1737311442590,-500.0,0.00022191,3]
[349584350,1737311442599,-500.0,0.00022191,3]
[349584352,1737311442610,-500.0,0.00022191,3]
[349584354,1737311442619,-591.51,0.00022191,3]
[349584356,1737311442628,-500.0,0.00022191,3]
[349584358,1737311442637,-500.0,0.00022191,3]
[349584360,1737311442646,-500.0,0.00022191,3]
[349584362,1737311442656,-500.0,0.00022191,3]
[349584364,1737311442665,-500.0,0.00022191,3]
[349584366,1737311442675,-160.84,0.00022191,3]
[349584369,1737311442684,-500.0,0.00022191,3]
[349584372,1737311442693,-500.0,0.00022191,3]
[349584374,1737311442703,-500.0,0.00022191,3]
[349584376,1737311442712,-500.0,0.00022191,3]
[349584378,1737311442722,-500.0,0.00022191,3]
[349584380,1737311442732,-347.68643417,0.00022191,3]
[349584382,1737311442741,-500.0,0.00022191,3]
[349584384,1737311442752,-500.0,0.00022191,3]
[349584386,1737311442761,-673.01,0.00022191,2]
[349584388,1737311442771,-500.0,0.00022191,3]
[349584390,1737311442780,-500.0,0.00022191,3]
[349584392,1737311442789,-563.49,0.00022191,3]
[349584394,1737311442799,-500.0,0.00022191,3]
[349584396,1737311442808,-500.0,0.00022191,3]
[349584398,1737311442817,-3057.96,0.00022191,3]
[349584400,1737311442826,-500.0,0.00022191,3]
[349584402,1737311442835,-4256.1,0.00022191,3]
[349584404,1737311442844,-500.0,0.00022191,3]
[349584406,1737311442853,-939.42,0.00022191,3]
[349584408,1737311442862,-500.0,0.00022191,3]
[349584410,1737311442871,-1829.97,0.00022191,3]
[349584412,1737311442881,-6847.51,0.00022191,3]
[349584415,1737311442890,-500.0,0.00022191,3]
[349584417,1737311442899,-12009.11,0.00022191,3]
[349584419,1737311442908,-500.0,0.00022191,3]
[349584421,1737311442917,-500.0,0.00022191,3]
[349584423,1737311442929,-500.0,0.00022191,3]
[349584425,1737311442938,-550.71,0.00022191,3]
[349584427,1737311442947,-1590.82,0.00022191,3]
[349584429,1737311442956,-596.61121658,0.00022191,3]
[349584431,1737311442965,-550.57,0.00022191,3]
[349584433,1737311442974,-961.0,0.00022191,3]
[349584436,1737311442983,-500.0,0.00022191,3]
[349584439,1737311442992,-500.0,0.00022191,3]
[349584442,1737311443002,-500.0,0.00022191,3]
[349584445,1737311443012,-500.0,0.00022191,3]
[349584448,1737311443021,-500.0,0.00022191,3]
[349584451,1737311443030,-7213.16,0.00022191,3]
[349584454,1737311443040,-1974.84,0.00022191,3]
[349584457,1737311443049,-500.0,0.00022191,3]
[349584459,1737311443058,-1116.79,0.00022191,3]
[349584461,1737311443067,-920.63,0.00022191,3]
[349584463,1737311443076,-500.0,0.00022191,3]
[349584465,1737311443086,-500.0,0.00022191,3]
[349584467,1737311443095,-1741.99,0.00022191,3]
[349584469,1737311443104,-1791.09,0.00022191,3]
[349584471,1737311443113,-1924.78,0.00022191,3]
[349584473,1737311443123,-538.08,0.00022191,3]
[349584475,1737311443134,-500.0,0.00022191,3]
[349584477,1737311443143,-1093.13,0.00022191,3]
[349584479,1737311443152,-983.37,0.00022191,3]
[349584481,1737311443161,-500.0,0.00022191,3]
[349584483,1737311443170,-980.47,0.00022191,3]
[349584485,1737311443179,-7577.7203141,0.00022191,3]
[349584487,1737311443191,-540.87287073,0.00022191,3]
[349584502,1737311443329,-178.0,0.00022,2]
[349584504,1737311443339,-1078.68189228,0.00022191,3]
[349584507,1737311443351,-1522.85798457,0.00022191,3]
[349584517,1737311443438,-205.36,0.00021917,3]
[349584519,1737311443447,-731.6,0.00022191,3]
[349584528,1737311443533,-10005.99693832,0.00022191,3]
[349584530,1737311443543,-130.02845074,0.00022191,3]
[349585340,1737311596683,158.132053,0.00013973,2]
[349585354,1737312316564,426546.12557711,0.0002,120]
[349585356,1737312471640,158.132053,0.00013973,2]
[349585869,1737312638429,-160.30642776,0.00017687,2]
[349585870,1737312638439,-160.30642776,0.00017866,2]
[349585871,1737312638448,-287.55260301,0.00018328,2]
[349585872,1737312638460,-12.44739699,0.00018328,2]
[349585873,1737312638470,-13037.1682141,0.00018429,2]
[349585878,1737312638597,-215.275965,0.00018758,2]
[349585879,1737312638607,-200.20954612,0.000189,2]
[349585880,1737312638624,-178.13540268,0.000189,2]
[349585881,1737312638635,-163.82,0.00019765,2]
[349585882,1737312638645,-225.31149674,0.00019765,2]
[349585883,1737312638654,-15633.535924,0.00019765,2]
[349585884,1737312638663,-420.0,0.00019991,2]
[349585885,1737312638674,-648.60157012,0.00020337,2]
[349585886,1737312638684,-10657.94128103,0.00020932,2]
[349585887,1737312638695,-10657.94128103,0.00021344,2]
[349585888,1737312638704,-163.01,0.00021419,2]
[349585889,1737312638714,-10657.94128103,0.00021421,2]
[349585890,1737312638724,-159.09537386,0.000218,2]
[349585891,1737312638733,-10657.94128103,0.000218,2]
[349585892,1737312638743,-587.0,0.00021805,2]
[349585893,1737312638753,-9187.98298995,0.000219,3]
[349585894,1737312638763,-500.0,0.00021917,3]
[349585895,1737312638773,-396.02622332,0.00021917,3]
[349585896,1737312638784,-180.53219842,0.00021917,3]
[349585897,1737312638794,-500.0,0.00021917,3]
[349585898,1737312638804,-538.41,0.00021917,3]
[349585899,1737312638813,-500.0,0.00021917,3]
[349585900,1737312638823,-500.0,0.00021917,3]
[349585901,1737312638832,-500.0,0.00021917,3]
[349585902,1737312638841,-500.0,0.00021917,3]
[349585903,1737312638851,-500.0,0.00021917,3]
[349585904,1737312638860,-500.0,0.00021917,3]
[349585905,1737312638869,-500.0,0.00021917,3]
[349585906,1737312638879,-500.0,0.00021917,3]
[349585907,1737312638888,-500.0,0.00021917,3]
[349585908,1737312638897,-500.0,0.00021917,3]
[349585909,1737312638908,-500.0,0.00021917,3]
[349585910,1737312638919,-500.0,0.00021917,3]
[349585911,1737312638928,-500.0,0.00021917,3]
[349585912,1737312638937,-500.0,0.00021917,3]
[349585913,1737312638947,-500.0,0.00021917,3]
[349585914,1737312638956,-500.0,0.00021917,3]
[349585915,1737312638965,-500.0,0.00021917,3]
[349585916,1737312638974,-476.31130381,0.00021917,3]
[349585950,1737312643563,-23.68869619,0.00021917,3]
[349585953,1737312643574,-705.07,0.00021917,2]
[349585954,1737312643584,-644.31169702,0.00021917,3]
[349585956,1737312643593,-500.0,0.00021917,3]
[349585958,1737312643604,-500.0,0.00021917,3]
[349585960,1737312643613,-604.29,0.00021917,3]
[349585962,1737312643623,-3849.08,0.00021917,3]
[349585965,1737312643633,-821.99,0.00021917,3]
[349585968,1737312643642,-500.0,0.00021917,3]
[349585970,1737312643653,-1601.23,0.00021917,3]
[349585972,1737312643663,-10507.97,0.00021917,3]
[349585974,1737312643673,-219.1,0.00021917,3]
[349585975,1737312643683,-500.0,0.00021917,3]
[349585976,1737312643693,-500.0,0.00021917,3]
[349585977,1737312643702,-500.0,0.00021917,3]
[349585978,1737312643712,-499.0,0.00021917,2]
[349585979,1737312643721,-500.0,0.00021917,3]
[349585980,1737312643731,-1391.97,0.00021917,3]
[349585981,1737312643741,-500.0,0.00021917,3]
[349585982,1737312643750,-500.0,0.00021917,3]
[349585983,1737312643759,-500.0,0.00021917,3]
[349585984,1737312643769,-840.87,0.00021917,3]
[349585985,1737312643779,-500.0,0.00021917,3]
[349585986,1737312643789,-500.0,0.00021917,3]
[349585987,1737312643799,-1727.98,0.00021917,3]
[349585988,1737312643809,-500.0,0.00021917,3]
[349585989,1737312643819,-500.0,0.00021917,3]
[349585990,1737312643828,-6311.52,0.00021917,3]
[349585991,1737312643838,-805.56,0.00021917,3]
[349585992,1737312643848,-500.0,0.00021917,3]
[349585993,1737312643857,-500.0,0.00021917,3]
[349585994,1737312643867,-500.0,0.00021917,3]
[349585995,1737312643877,-500.0,0.00021917,3]
[349585996,1737312643886,-500.0,0.00021917,3]
[349585997,1737312643896,-500.0,0.00021917,3]
[349585998,1737312643905,-500.0,0.00021917,3]
[349585999,1737312643918,-500.0,0.00021917,3]
[349586000,1737312643928,-500.0,0.00021917,3]
[349586001,1737312643937,-977.19,0.00021917,3]
[349586002,1737312643946,-500.0,0.00021917,3]
[349586003,1737312643956,-1524.24,0.00021917,3]
[349586004,1737312643966,-500.0,0.00021917,3]
[349586005,1737312643975,-1684.18,0.00021917,3]
[349586006,1737312643984,-956.48,0.00021917,3]
[349586007,1737312643994,-1567.2,0.00021917,3]
[349586008,1737312644003,-18775.52,0.00021917,3]
[349586009,1737312644013,-677.14,0.00021917,3]
[349586010,1737312644022,-857.91,0.00021917,3]
[349586011,1737312644034,-553.46,0.00021917,3]
[349586012,1737312644043,-860.45,0.00021917,3]
[349586013,1737312644052,-500.0,0.00021917,3]
[349586015,1737312644061,-1881.7,0.00021917,3]
[349586017,1737312644071,-544.85,0.00021917,3]
[349586019,1737312644080,-500.0,0.00021917,3]
[349586021,1737312644090,-500.0,0.00021917,3]
[349586022,1737312644099,-1034.8,0.00021917,3]
[349586023,1737312644108,-500.0,0.00021917,3]
[349586024,1737312644118,-697.48,0.00021917,3]
[349586025,1737312644127,-500.0,0.00021917,3]
[349586026,1737312644136,-500.0,0.00021917,3]
[349586027,1737312644146,-500.0,0.00021917,3]
[349586028,1737312644155,-2675.72,0.00021917,3]
[349586029,1737312644165,-5991.57,0.00021917,3]
[349586030,1737312644175,-204.04919965,0.00021998,2]
[349586031,1737312644184,-500.0,0.00021998,2]
[349586032,1737312644194,-500.0,0.00021998,2]
[349586033,1737312644203,-500.0,0.00021998,2]
[349586034,1737312644213,-500.0,0.00021998,2]
[349586035,1737312644222,-500.0,0.00021998,2]
[349586036,1737312644232,-261.70220803,0.00021998,2]
[349586037,1737312644241,-567.96447367,0.00021998,2]
[349586038,1737312644252,-500.0,0.00021998,2]
[349586039,1737312644261,-500.0,0.00021998,2]
[349586040,1737312644270,-500.39592519,0.00021998,2]
[349586041,1737312644280,-500.0,0.00021998,2]
[349586042,1737312644290,-500.0,0.00021998,2]
[349586043,1737312644299,-445.06846288,0.00021998,2]
[349586044,1737312644309,-500.0,0.00021998,2]
[349586045,1737312644319,-500.0,0.00021998,2]
[349586046,1737312644328,-500.0,0.00021998,2]
[349586047,1737312644338,-500.0,0.00021998,2]
[349586048,1737312644348,-500.0,0.00021998,2]
[349586049,1737312644358,-500.0,0.00021998,2]
[349586050,1737312644368,-500.0,0.00021998,2]
[349586051,1737312644378,-500.0,0.00021998,2]
[349586052,1737312644387,-574.79377674,0.00021998,2]
[349586053,1737312644397,-500.0,0.00021998,2]
[349586054,1737312644407,-500.0,0.00021998,2]
[349586055,1737312644416,-500.0,0.00021998,2]
[349586056,1737312644425,-500.0,0.00021998,2]
[349586057,1737312644435,-500.0,0.00021998,2]
[349586058,1737312644444,-500.0,0.00021998,2]
[349586059,1737312644453,-500.0,0.00021998,2]
[349586060,1737312644462,-500.0,0.00021998,2]
[349586061,1737312644472,-500.0,0.00021998,2]
[349586062,1737312644481,-500.0,0.00021998,2]
[349586063,1737312644491,-500.0,0.00021998,2]
[349586064,1737312644501,-500.0,0.00021998,2]
[349586065,1737312644510,-500.0,0.00021998,2]
[349586066,1737312644520,-500.0,0.00021998,2]
[349586067,1737312644531,-500.0,0.00021998,2]
[349586068,1737312644541,-500.0,0.00021998,2]
[349586069,1737312644551,-500.0,0.00021998,2]
[349586070,1737312644560,-378.55616391,0.00021998,2]
[349586071,1737312644569,-500.0,0.00021998,2]
[349586072,1737312644580,-500.0,0.00021998,2]
[349586073,1737312644590,-500.0,0.00021998,2]
[349586074,1737312644600,-500.0,0.00021998,2]
[349586075,1737312644609,-500.0,0.00021998,2]
[349586076,1737312644619,-500.0,0.00021998,2]
[349586077,1737312644628,-500.0,0.00021998,2]
[349586078,1737312644638,-500.0,0.00021998,2]
[349586079,1737312644648,-500.0,0.00021998,2]
[349586080,1737312644658,-500.0,0.00021998,2]
[349586081,1737312644667,-500.0,0.00021998,2]
[349586082,1737312644677,-500.0,0.00021998,2]
[349586083,1737312644687,-486.14491826,0.00021998,2]
[349586084,1737312644697,-500.0,0.00021998,2]
[349586085,1737312644707,-500.0,0.00021998,2]
[349586086,1737312644717,-500.0,0.00021998,2]
[349586087,1737312644726,-500.0,0.00021998,2]
[349586088,1737312644736,-500.0,0.00021998,2]
[349586089,1737312644746,-500.0,0.00021998,2]
[349586090,1737312644756,-500.0,0.00021998,2]
[349586091,1737312644766,-500.0,0.00021998,2]
[349586092,1737312644776,-500.0,0.00021998,2]
[349586093,1737312644788,-500.0,0.00021998,2]
[349586094,1737312644799,-500.0,0.00021998,2]
[349586095,1737312644809,-500.0,0.00021998,2]
[349586096,1737312644819,-299.29590669,0.00021998,2]
[349586097,1737312644829,-500.0,0.00021998,2]
[349586098,1737312644931,-500.0,0.00021998,2]
[349586099,1737312644941,-500.0,0.00021998,2]
[349586100,1737312644952,-500.0,0.00021998,2]
[349586101,1737312644963,-500.0,0.00021998,2]
[349586102,1737312644972,-500.0,0.00021998,2]
[349586103,1737312644983,-199.33243337,0.00021998,2]
[349586104,1737312644993,-500.0,0.00021998,2]
[349586105,1737312645004,-500.0,0.00021998,2]
[349586106,1737312645014,-500.0,0.00021998,2]
[349586107,1737312645024,-500.0,0.00021998,2]